fUST/lending_fUST_20251213
["ID","MTS","AMOUNT","RATE_DAILY","PERIOD"]
[398385924,1765570232280,-695.75377068,0.00012767,7]
[398385927,1765570232291,-1825.68364168,0.00012779,7]
[398385930,1765570232301,-300.0,0.00012798,2]
[398385932,1765570232311,-559.92390757,0.00012799,2]
[398385934,1765570232321,-357.48387909,0.00012799,2]
[398385937,1765570232331,-342.0,0.00012799,2]
[398385940,1765570232344,-567.36174375,0.00012799,2]
[398385942,1765570232358,-500.0,0.00012799,2]
[398385944,1765570232368,-508.17541614,0.00012799,2]
[398385946,1765570232379,-321970.24490034,0.000128,2]
[398386127,1765570238398,-568029.75509966,0.000128,2]
[398386128,1765570238408,-2583.0209477,0.00012862,2]
[398386129,1765570238418,-30391.6871354,0.00012862,2]
[398386130,1765570238428,-357.48,0.00012899,2]
[398386131,1765570238438,-184.19,0.00012899,2]
[398386132,1765570238448,-184.19,0.00012899,2]
[398386133,1765570238457,-184.19,0.00012899,2]
[398386134,1765570238467,-184.19,0.00012899,2]
[398386135,1765570238477,-2000.0,0.00012899,2]
[398386136,1765570238487,-500.0,0.000129,2]
[398386137,1765570238498,-1000.0,0.000129,2]
[398386138,1765570238507,-1000.0,0.000129,2]
[398386139,1765570238518,-1000.0,0.000129,2]
[398386140,1765570238528,-1000.0,0.000129,2]
[398386141,1765570238538,-1000.0,0.000129,2]
[398386142,1765570238548,-1000.0,0.000129,2]
[398386143,1765570238558,-1000.0,0.000129,2]
[398386144,1765570238571,-1000.0,0.000129,2]
[398386145,1765570238586,-1000.0,0.000129,2]
[398386146,1765570238596,-1000.0,0.000129,2]
[398386147,1765570238606,-1000.0,0.000129,2]
[398386148,1765570238616,-1000.0,0.000129,2]
[398386149,1765570238626,-1000.0,0.000129,2]
[398386150,1765570238636,-1000.0,0.000129,2]
[398386151,1765570238647,-796.94041341,0.000129,2]
[398386152,1765570238662,-151.0,0.00012926,2]
[398386153,1765570238677,-160.523436,0.00012926,2]
[398386154,1765570238688,-1326.7144,0.00012926,2]
[398386155,1765570238698,-1326.7144,0.00012926,2]
[398386156,1765570238713,-1326.7144,0.00012926,2]
[398386157,1765570238724,-1326.7144,0.00012926,2]
[398386158,1765570238734,-250.0,0.00012926,2]
[398386159,1765570238744,-250.0,0.00012926,2]
[398386160,1765570238756,-477.24110637,0.00012926,2]
[398386161,1765570238766,-250.0,0.00012926,2]
[398386162,1765570238777,-250.0,0.00012926,2]
[398386163,1765570238787,-250.0,0.00012926,2]
[398386164,1765570238798,-574.12855637,0.00012926,2]
[398386165,1765570238808,-250.0,0.00012926,2]
[398386166,1765570238819,-202.62059,0.00012926,2]
[398386167,1765570238829,-250.0,0.00012926,2]
[398386168,1765570238839,-250.0,0.00012926,2]
[398386169,1765570238850,-250.0,0.00012926,2]
[398386170,1765570238860,-250.0,0.00012926,2]
[398386171,1765570238870,-307.15870668,0.00012926,2]
[398386172,1765570238881,-250.0,0.00012926,2]
[398386173,1765570238891,-250.0,0.00012926,2]
[398386174,1765570238900,-250.0,0.00012926,2]
[398386175,1765570238910,-253.3877327,0.00012926,2]
[398386176,1765570238921,-250.0,0.00012926,2]
[398386177,1765570238931,-250.0,0.00012926,2]
[398386178,1765570238941,-250.0,0.00012926,2]
[398386179,1765570238951,-250.0,0.00012926,2]
[398386180,1765570238961,-250.0,0.00012926,2]
[398386181,1765570238971,-203.0,0.00012926,2]
[398386182,1765570238982,-250.0,0.00012926,2]
[398386183,1765570238992,-250.0,0.00012926,2]
[398386184,1765570239002,-1000.0,0.00012926,2]
[398386185,1765570239012,-1000.0,0.00012926,2]
[398386186,1765570239023,-250.0,0.00012926,2]
[398386187,1765570239037,-1000.0,0.00012926,2]
[398386188,1765570239047,-2773.56790519,0.00012926,2]
[398386189,1765570239057,-250.0,0.00012926,2]
[398386190,1765570239067,-1000.0,0.00012926,2]
[398386191,1765570239078,-250.0,0.00012926,2]
[398386192,1765570239088,-1000.0,0.00012926,2]
[398386193,1765570239098,-250.0,0.00012926,2]
[398386194,1765570239108,-1000.0,0.00012926,2]
[398386195,1765570239117,-250.0,0.00012926,2]
[398386196,1765570239127,-1000.0,0.00012926,2]
[398386197,1765570239138,-250.0,0.00012926,2]
[398386198,1765570239148,-1000.0,0.00012926,2]
[398386199,1765570239159,-1000.0,0.00012926,2]
[398386200,1765570239169,-1000.0,0.00012926,2]
[398386201,1765570239180,-1000.0,0.00012926,2]
[398386202,1765570239190,-1067.87266344,0.00012926,2]
[398386203,1765570239200,-500.0,0.00012926,2]
[398386204,1765570239211,-500.0,0.00012926,2]
[398386205,1765570239221,-500.0,0.00012926,2]
[398386206,1765570239232,-500.0,0.00012926,2]
[398386207,1765570239243,-500.0,0.00012926,2]
[398386208,1765570239253,-500.0,0.00012926,2]
[398386209,1765570239264,-500.0,0.00012926,2]
[398386210,1765570239275,-500.0,0.00012926,2]
[398386211,1765570239285,-500.0,0.00012926,2]
[398386212,1765570239295,-1699.0,0.00012926,2]
[398386213,1765570239306,-500.0,0.00012926,2]
[398386214,1765570239316,-578.4,0.00013,5]
[398386215,1765570239326,-500.0,0.00013035,2]
[398386216,1765570239336,-2000.0,0.000132,2]
[398386217,1765570239346,-500.0,0.00013258,2]
[398386218,1765570239357,-500.0,0.00013258,2]
[398386219,1765570239367,-150.0,0.00013258,2]
[398386220,1765570239380,-500.0,0.00013258,2]
[398386221,1765570239394,-500.0,0.00013258,2]
[398386222,1765570239404,-500.0,0.00013258,2]
[398386223,1765570239415,-150.0,0.00013258,2]
[398386224,1765570239426,-500.0,0.00013258,2]
[398386225,1765570239437,-200.57123983,0.00013258,2]
[398386226,1765570239447,-150.0,0.00013258,2]
[398386227,1765570239457,-150.0,0.00013258,2]
[398386228,1765570239467,-500.0,0.00013258,2]
[398386229,1765570239478,-151.0,0.00013258,2]
[398386230,1765570239488,-150.0,0.00013258,2]
[398386231,1765570239498,-200.29238146,0.00013258,2]
[398386232,1765570239508,-150.0,0.00013258,2]
[398386233,1765570239518,-150.0,0.00013258,2]
[398386234,1765570239528,-150.0,0.00013258,2]
[398386235,1765570239538,-151.15485547,0.00013258,2]
[398386236,1765570239548,-150.0,0.00013258,2]
[398386237,1765570239558,-150.0,0.00013258,2]
[398386238,1765570239569,-150.0,0.00013258,2]
[398386239,1765570239583,-150.0,0.00013258,2]
[398386240,1765570239593,-150.0,0.00013258,2]
[398386241,1765570239603,-500.0,0.00013258,2]
[398386242,1765570239614,-150.0,0.00013258,2]
[398386243,1765570239625,-151.70531192,0.00013258,2]
[398386244,1765570239635,-150.0,0.00013258,2]
[398386245,1765570239646,-151.0,0.00013258,2]
[398386246,1765570239660,-150.0,0.00013258,2]
[398386247,1765570239670,-150.0,0.00013258,2]
[398386248,1765570239680,-500.0,0.00013273,2]
[398386249,1765570239690,-500.0,0.00013273,2]
[398386250,1765570239700,-500.0,0.00013273,2]
[398386251,1765570239710,-500.0,0.00013273,2]
[398386252,1765570239719,-500.0,0.00013273,2]
[398386253,1765570239730,-500.0,0.00013273,2]
[398386254,1765570239740,-500.0,0.00013273,2]
[398386255,1765570239750,-500.0,0.00013273,2]
[398386256,1765570239760,-500.0,0.00013273,2]
[398386257,1765570239770,-500.0,0.00013273,2]
[398386258,1765570239780,-1326.7144,0.00013273,2]
[398386259,1765570239790,-1326.7144,0.00013273,2]
[398386260,1765570239800,-1326.7144,0.00013273,2]
[398386261,1765570239810,-1326.7144,0.00013273,2]
[398386262,1765570239820,-151.0,0.000133,2]
[398386263,1765570239830,-171.57713362,0.00013328,2]
[398386264,1765570239839,-501.49499767,0.00013395,2]
[398386265,1765570239848,-500.0,0.00013395,2]
[398386266,1765570239859,-150.0,0.00013395,2]
[398386267,1765570239868,-513.22955624,0.00013395,2]
[398386268,1765570239878,-500.0,0.00013395,2]
[398386269,1765570239887,-529.69504851,0.00013395,2]
[398386270,1765570239897,-500.0,0.00013395,2]
[398386271,1765570239907,-298.97403973,0.00013395,2]
[398386272,1765570239917,-150.0,0.00013395,2]
[398386274,1765570239926,-152.0,0.00013395,2]
[398386275,1765570239936,-505.48316514,0.00013395,2]
[398386276,1765570239945,-150.0,0.00013395,2]
[398386277,1765570239955,-150.0,0.00013395,2]
[398386278,1765570239964,-153.25519424,0.00013395,2]
[398386279,1765570239973,-150.0,0.00013395,2]
[398386281,1765570239983,-150.0,0.00013395,2]
[398386282,1765570239993,-153.92095978,0.00013395,2]
[398386283,1765570240003,-150.0,0.00013395,2]
[398386284,1765570240013,-150.0,0.00013395,2]
[398386285,1765570240022,-150.0,0.00013395,2]
[398386286,1765570240032,-500.0,0.00013395,2]
[398386288,1765570240041,-150.0,0.00013395,2]
[398386290,1765570240051,-206.22122079,0.00013395,2]
[398386292,1765570240060,-150.0,0.00013395,2]
[398386294,1765570240070,-150.0,0.00013395,2]
[398386295,1765570240079,-595.37131296,0.00013474,2]
[398386297,1765570240089,-2876.18991768,0.00013474,2]
[398386298,1765570240098,-1699.0,0.00013474,2]
[398386299,1765570240107,-151.0,0.000135,2]
[398386300,1765570240117,-500.0,0.00013532,2]
[398386301,1765570240126,-150.0,0.00013532,2]
[398386302,1765570240136,-152.0,0.00013532,2]
[398386304,1765570240146,-303.0,0.00013532,2]
[398386305,1765570240156,-200.0,0.00013532,2]
[398386306,1765570240165,-150.0,0.00013532,2]
[398386307,1765570240175,-150.0,0.00013532,2]
[398386308,1765570240184,-150.0,0.00013532,2]
[398386309,1765570240194,-150.0,0.00013532,2]
[398386310,1765570240203,-156.5193978,0.00013532,2]
[398386311,1765570240213,-150.0,0.00013532,2]
[398386312,1765570240223,-202.02713431,0.00013532,2]
[398386313,1765570240232,-500.0,0.00013532,2]
[398386314,1765570240242,-150.0,0.00013532,2]
[398386316,1765570240251,-201.9247036,0.00013532,2]
[398386318,1765570240449,-150.0,0.00013532,2]
[398386320,1765570240459,-452.18858374,0.0001359,2]
[398386321,1765570240468,-813.93945073,0.0001359,2]
[398386322,1765570240480,-1447.00346796,0.0001359,2]
[398386323,1765570240489,-2258.68197577,0.0001359,2]
[398386324,1765570240498,-252.74411953,0.0001359,2]
[398386325,1765570240508,-454.93941515,0.0001359,2]
[398386326,1765570240517,-807.97240131,0.0001359,2]
[398386327,1765570240526,-473.94014924,0.00013657,2]
[398386328,1765570240536,-581.79986078,0.00013669,2]
[398386329,1765570240545,-150.0,0.00013669,2]
[398386330,1765570240554,-150.0,0.00013669,2]
[398386331,1765570240564,-150.0,0.00013669,2]
[398386332,1765570240575,-150.0,0.00013669,2]
[398386333,1765570240585,-202.36773371,0.00013669,2]
[398386334,1765570240594,-150.0,0.00013669,2]
[398386335,1765570240603,-152.2157047,0.00013669,2]
[398386336,1765570240613,-150.0,0.00013669,2]
[398386337,1765570240622,-150.0,0.00013669,2]
[398386338,1765570240632,-2790.20223351,0.00013672,2]
[398386339,1765570240641,-300.0,0.00013673,2]
[398386340,1765570240654,-232.91351473,0.00013693,7]
[398386341,1765570240663,-406.19621977,0.00013695,7]
[398386342,1765570240673,-500.0,0.00013698,2]
[398386343,1765570240682,-500.0,0.00013698,2]
[398386344,1765570240691,-500.0,0.00013698,2]
[398386345,1765570240700,-500.0,0.00013698,2]
[398386346,1765570240709,-500.0,0.00013698,2]
[398386347,1765570240719,-500.0,0.00013698,2]
[398386348,1765570240729,-500.0,0.00013698,2]
[398386349,1765570240738,-502.85819518,0.00013698,2]
[398386350,1765570240747,-500.0,0.00013698,2]
[398386351,1765570240756,-500.0,0.00013698,2]
[398386352,1765570240765,-500.0,0.00013698,2]
[398386353,1765570240775,-500.0,0.00013698,2]
[398386354,1765570240784,-500.0,0.00013698,2]
[398386355,1765570240793,-500.0,0.00013698,2]
[398386356,1765570240802,-500.0,0.00013698,2]
[398386357,1765570240811,-151.0,0.00013698,2]
[398386358,1765570240820,-500.0,0.00013698,2]
[398386359,1765570240830,-500.0,0.00013698,2]
[398386360,1765570240839,-500.0,0.00013698,2]
[398386361,1765570240848,-500.0,0.00013698,2]
[398386362,1765570240857,-500.0,0.00013698,2]
[398386363,1765570240867,-500.0,0.00013698,2]
[398386364,1765570240876,-543.27696683,0.00013698,2]
[398386365,1765570240885,-1326.7144,0.00013698,2]
[398386366,1765570240894,-1326.7144,0.00013698,2]
[398386367,1765570240904,-1326.7144,0.00013698,2]
[398386368,1765570240914,-1326.7144,0.00013698,2]
[398386369,1765570240923,-904.17,0.00013698,2]
[398386370,1765570240932,-904.17,0.00013698,2]
[398386371,1765570240941,-904.17,0.00013698,2]
[398386372,1765570240951,-904.17,0.00013698,2]
[398386373,1765570240960,-904.17,0.00013698,2]
[398386374,1765570240969,-904.17,0.00013698,2]
[398386375,1765570240979,-904.17,0.00013698,2]
[398386376,1765570240988,-904.17,0.00013698,2]
[398386377,1765570240997,-904.17,0.00013698,2]
[398386378,1765570241006,-904.17,0.00013698,2]
[398386379,1765570241015,-904.17,0.00013698,2]
[398386380,1765570241024,-1006.07,0.00013698,2]
[398386381,1765570241034,-904.17,0.00013698,2]
[398386382,1765570241043,-1006.07,0.00013698,2]
[398386383,1765570241052,-904.17,0.00013698,2]
[398386384,1765570241061,-1006.07,0.00013698,2]
[398386385,1765570241071,-1006.07,0.00013698,2]
[398386386,1765570241080,-1006.07,0.00013698,2]
[398386387,1765570241089,-904.17,0.00013698,2]
[398386388,1765570241098,-1006.07,0.00013698,2]
[398386389,1765570241108,-904.17,0.00013698,2]
[398386390,1765570241117,-1006.07,0.00013698,2]
[398386391,1765570241127,-904.17,0.00013698,2]
[398386392,1765570241136,-1006.07,0.00013698,2]
[398386393,1765570241145,-1006.07,0.00013698,2]
[398386394,1765570241155,-904.17,0.00013698,2]
[398386395,1765570241164,-904.17,0.00013698,2]
[398386396,1765570241174,-1006.07,0.00013698,2]
[398386397,1765570241183,-904.17,0.00013698,2]
[398386398,1765570241193,-1006.07,0.00013698,2]
[398386399,1765570241202,-904.17,0.00013698,2]
[398386400,1765570241211,-1006.07,0.00013698,2]
[398386401,1765570241221,-904.17,0.00013698,2]
[398386402,1765570241230,-1006.07,0.00013698,2]
[398386403,1765570241239,-904.17,0.00013698,2]
[398386404,1765570241248,-1006.07,0.00013698,2]
[398386405,1765570241258,-904.17,0.00013698,2]
[398386406,1765570241268,-1006.07,0.00013698,2]
[398386407,1765570241278,-904.27448987,0.00013698,2]
[398386408,1765570241287,-1006.07,0.00013698,2]
[398386409,1765570241296,-1006.07,0.00013698,2]
[398386410,1765570241305,-1006.07,0.00013698,2]
[398386411,1765570241315,-1500.0,0.00013699,2]
[398386412,1765570241324,-1000.0,0.00013699,2]
[398386413,1765570241333,-12846.7272745,0.00013699,2]
[398386414,1765570241342,-500.0,0.00013699,2]
[398386415,1765570241353,-500.0,0.00013699,2]
[398386416,1765570241362,-500.0,0.00013699,2]
[398386417,1765570241372,-500.0,0.00013699,2]
[398386418,1765570241381,-508.04206109,0.00013699,2]
[398386419,1765570241391,-500.0,0.00013699,2]
[398386420,1765570241401,-500.0,0.00013699,2]
[398386421,1765570241410,-500.0,0.00013699,2]
[398386422,1765570241420,-500.0,0.00013699,2]
[398386423,1765570241429,-500.0,0.00013699,2]
[398386424,1765570241439,-500.0,0.00013699,2]
[398386425,1765570241448,-500.0,0.00013699,2]
[398386426,1765570241457,-500.00629522,0.00013699,2]
[398386427,1765570241467,-500.0,0.00013699,2]
[398386428,1765570241477,-500.0,0.00013699,2]
[398386429,1765570241487,-500.0,0.00013699,2]
[398386430,1765570241497,-500.0,0.00013699,2]
[398386431,1765570241506,-500.0,0.00013699,2]
[398386432,1765570241516,-500.0,0.00013699,2]
[398386433,1765570241525,-500.0,0.00013699,2]
[398386434,1765570241534,-500.0,0.00013699,2]
[398386435,1765570241544,-500.0,0.00013699,2]
[398386436,1765570241554,-198.00196637,0.00013699,2]
[398386437,1765570241563,-500.0,0.00013699,2]
[398386438,1765570241572,-500.0,0.00013699,2]
[398386439,1765570241584,-500.0,0.00013699,2]
[398386440,1765570241594,-538.82198234,0.00013699,2]
[398386441,1765570241605,-500.0,0.00013699,2]
[398386442,1765570241615,-500.0,0.00013699,2]
[398386443,1765570241625,-500.0,0.00013699,2]
[398386444,1765570241634,-500.0,0.00013699,2]
[398386445,1765570241643,-151.0,0.00013699,2]
[398386446,1765570241653,-1326.7144,0.00013699,2]
[398386447,1765570241663,-1326.7144,0.00013699,2]
[398386448,1765570241673,-1326.7144,0.00013699,2]
[398386449,1765570241683,-1326.7144,0.00013699,2]
[398386450,1765570241692,-500.0,0.00013699,2]
[398386451,1765570241702,-500.0,0.00013699,2]
[398386452,1765570241712,-500.0,0.00013699,2]
[398386453,1765570241721,-500.0,0.00013699,2]
[398386454,1765570241731,-645.34285289,0.00013699,2]
[398386455,1765570241740,-500.0,0.00013699,2]
[398386456,1765570241749,-500.0,0.00013699,2]
[398386457,1765570241759,-500.0,0.00013699,2]
[398386458,1765570241768,-500.0,0.00013699,2]
[398386459,1765570241777,-500.0,0.00013699,2]
[398386460,1765570241786,-500.0,0.00013699,2]
[398386461,1765570241797,-475.0,0.000137,2]
[398386462,1765570241806,-475.0,0.000137,2]
[398386463,1765570241815,-151.0,0.000137,2]
[398386464,1765570241824,-482.29515643,0.00013782,2]
[398386465,1765570241834,-224.41774473,0.00013806,2]
[398386466,1765570241843,-250.0,0.00013806,2]
[398386467,1765570241855,-250.0,0.00013806,2]
[398386468,1765570241865,-250.60169246,0.00013806,2]
[398386469,1765570241874,-150.0,0.00013806,2]
[398386470,1765570241883,-150.0,0.00013806,2]
[398386471,1765570241893,-250.0,0.00013806,2]
[398386472,1765570241903,-1000.0,0.00013821,2]
[398386473,1765570241911,-1000.0,0.00013821,2]
[398386474,1765570241920,-1000.0,0.00013821,2]
[398386475,1765570241929,-1000.0,0.00013821,2]
[398386476,1765570241939,-1000.0,0.00013821,2]
[398386477,1765570241948,-500.0,0.00013821,2]
[398386478,1765570241957,-1000.0,0.00013821,2]
[398386479,1765570241966,-1000.0,0.00013821,2]
[398386480,1765570241976,-1000.0,0.00013821,2]
[398386481,1765570241985,-160.0,0.00013836,2]
[398386482,1765570241995,-151.0,0.000139,2]
[398386483,1765570242004,-370.0,0.000139,2]
[398386484,1765570242015,-204.94033664,0.00013943,2]
[398386485,1765570242024,-206.35572587,0.00013943,2]
[398386486,1765570242035,-358.84705677,0.00013943,2]
[398386487,1765570242045,-134454.50029319,0.00013966,2]
[398386488,1765570242055,-151.0,0.00013966,2]
[398386489,1765570242065,-1326.7144,0.00013966,2]
[398386490,1765570242074,-1326.7144,0.00013966,2]
[398386491,1765570242084,-1326.7144,0.00013966,2]
[398386492,1765570242093,-1326.714407,0.00013966,2]
[398386493,1765570242104,-163.17055612,0.00013973,2]
[398386494,1765570242112,-2000.0,0.00013999,3]
[398386495,1765570242122,-617.40005154,0.00014022,2]
[398386496,1765570242131,-1633.11348845,0.00014022,2]
[398386497,1765570242140,-420.0,0.00014038,2]
[398386498,1765570242150,-151.0,0.000141,2]
[398386499,1765570242159,-399.33428483,0.00014118,2]
[398386500,1765570242168,-600.0,0.00014221,2]
[398386501,1765570242177,-184.44,0.00014221,2]
[398386502,1765570242187,-179.244,0.00014221,2]
[398386503,1765570242196,-1000.0,0.00014247,2]
[398386504,1765570242206,-154.76780128,0.00014247,2]
[398386505,1765570242215,-1000.0,0.00014247,2]
[398386506,1765570242224,-1000.0,0.00014247,2]
[398386507,1765570242234,-1000.0,0.00014247,2]
[398386508,1765570242243,-1000.0,0.00014247,2]
[398386509,1765570242253,-1000.0,0.00014247,2]
[398386510,1765570242262,-1000.0,0.00014247,2]
[398386511,1765570242271,-1000.0,0.00014247,2]
[398386512,1765570242280,-163.79408364,0.00014247,2]
[398386513,1765570242289,-475.0,0.00014266,2]
[398386514,1765570242299,-204.0,0.00014281,2]
[398386515,1765570242307,-151.0,0.000143,2]
[398386516,1765570242316,-419.79459694,0.00014304,2]
[398386517,1765570242326,-500.0,0.0001436,2]
[398386518,1765570242335,-1500.0,0.00014368,2]
[398386519,1765570242344,-1500.0,0.00014368,2]
[398386520,1765570242354,-1500.0,0.00014368,2]
[398386521,1765570242363,-1500.0,0.00014368,2]
[398386522,1765570242372,-1500.0,0.00014368,2]
[398386523,1765570242382,-1500.0,0.00014368,2]
[398386524,1765570242391,-1500.0,0.00014368,2]
[398386525,1765570242400,-1500.0,0.00014368,2]
[398386526,1765570242410,-260.0,0.00014384,2]
[398386527,1765570242419,-1793.26053588,0.00014492,2]
[398386528,1765570242463,-1006.07,0.00013698,2]
[398386529,1765570242472,-4988.04148182,0.00014492,2]
[398386530,1765570242481,-151.0,0.000145,2]
[398386531,1765570242491,-500.0,0.00014533,2]
[398386532,1765570242500,-640.24385345,0.0001457,2]
[398386533,1765570242510,-718.80171269,0.00014661,2]
[398386534,1765570242519,-151.0,0.000147,2]
[398386535,1765570242528,-500.0,0.00014714,2]
[398386536,1765570242538,-500.0,0.00014737,2]
[398386537,1765570242547,-900.0,0.00014768,2]
[398386538,1765570242557,-474.41408939,0.00014778,2]
[398386539,1765570242566,-1500.0,0.00014795,2]
[398386540,1765570242577,-1500.0,0.00014795,2]
[398386541,1765570242587,-1500.0,0.00014795,2]
[398386542,1765570242597,-1500.0,0.00014795,2]
[398386543,1765570242608,-1500.0,0.00014795,2]
[398386544,1765570242618,-1500.0,0.00014795,2]
[398386545,1765570242628,-1500.0,0.00014795,2]
[398386546,1765570242637,-170.19867211,0.00014835,2]
[398386547,1765570242646,-1513.1130052,0.00014856,2]
[398386548,1765570242659,-2000.0,0.00014916,2]
[398386549,1765570242668,-2000.0,0.00014916,2]
[398386550,1765570242678,-2000.0,0.00014916,2]
[398386551,1765570242688,-2000.0,0.00014916,2]
[398386552,1765570242697,-2000.0,0.00014916,2]
[398386553,1765570242707,-2000.0,0.00014916,2]
[398386554,1765570242716,-500.0,0.00014916,2]
[398386555,1765570242725,-2000.0,0.00014916,2]
[398386556,1765570242735,-360.0,0.00014932,2]
[398386557,1765570242744,-37100.0,0.00015,2]
[398386559,1765570242754,-100000.0,0.00015028,2]
[398386560,1765570242763,-755.63027449,0.00015034,2]
[398386562,1765570242772,-243.816783,0.00015068,2]
[398386563,1765570242781,-800.0,0.00015068,2]
[398386564,1765570242790,-663.93287602,0.00015118,2]
[398386565,1765570242799,-1277.86971144,0.00015203,2]
[398386566,1765570242809,-1200.0,0.00015316,2]
[398386567,1765570242818,-2000.0,0.00015342,2]
[398386568,1765570242827,-2000.0,0.00015342,2]
[398386569,1765570242836,-799.64175732,0.00015342,2]
[398386581,1765570243340,-427.03444866,0.00012926,2]
[398386582,1765570243534,150.0,7.069e-05,2]
[398386583,1765570243617,150.0,7.711e-05,2]
[398386584,1765570243781,150.0,8.354e-05,2]
[398386599,1765570246422,-152.18,8.996e-05,2]
[398386600,1765570246433,-190.23,9.639e-05,2]
[398386601,1765570246443,-228.27,0.00010282,2]
[398386602,1765570246454,-266.32,0.00010924,2]
[398386603,1765570246465,-304.36,0.00011567,2]
[398386604,1765570246475,-342.41,0.00012209,2]
[398386605,1765570246485,-380.45,0.00012852,2]
[398386606,1765570246494,-72.96555134,0.00012926,2]
[398386607,1765570246504,-1301.0,0.00012926,2]
[398386608,1765570246514,-1006.07,0.00013698,2]
[398386609,1765570246524,-1006.07,0.00013698,2]
[398386610,1765570246534,-1006.07,0.00013698,2]
[398386611,1765570246546,-1006.07,0.00013698,2]
[398386612,1765570246555,-1006.25957507,0.00013698,2]
[398386613,1765570246565,-1699.0,0.00014022,2]
[398386614,1765570246576,-1699.0,0.0001457,2]
[398386615,1765570246587,-1699.0,0.00015118,2]
[398386616,1765570246597,-1200.35824268,0.00015342,2]
[398386617,1765570246607,-2000.0,0.00015342,2]
[398386618,1765570246618,-2000.0,0.00015342,2]
[398386619,1765570246628,-2000.0,0.00015342,2]
[398386620,1765570246639,-587.0,0.00015398,2]
[398386621,1765570246649,-2500.0,0.00015464,2]
[398386622,1765570246661,-2278.04545937,0.00015464,2]
[398386623,1765570246672,-2527.70513452,0.00015464,2]
[398386624,1765570246683,-2500.0,0.00015464,2]
[398386625,1765570246693,-2500.0,0.00015464,2]
[398386626,1765570246703,-2500.0,0.00015464,2]
[398386627,1765570246713,-2500.0,0.00015464,2]
[398386628,1765570246723,-460.0,0.0001548,2]
[398386629,1765570246733,-159.46764179,0.000155,2]
[398386630,1765570246744,-500.0,0.00015641,2]
[398386631,1765570246754,-688.49839244,0.00015666,2]
[398386632,1765570246764,-1140.45780279,0.00015666,2]
[398386633,1765570247167,-558.54219721,0.00015666,2]
[398386634,1765570247177,-1996.67142413,0.00015745,2]
[398386635,1765570247186,-1343.34271021,0.00015763,2]
[398386636,1765570247196,-1500.0,0.00015864,2]
[398386637,1765570247206,-1623.1600942,0.00015865,7]
[398386638,1765570247215,-930.72240486,0.00015882,7]
[398386639,1765570247225,-723.95119122,0.0001589,2]
[398386640,1765570247408,-2500.0,0.0001589,2]
[398386641,1765570247418,-2500.0,0.0001589,2]
[398386642,1765570247427,-357.2575728,0.0001589,2]
[398386643,1765570247635,-441.315,0.0001589,2]
[398386644,1765570314155,150.0,7.102e-05,2]
[398386645,1765570314573,160.73,7.748e-05,2]
[398386646,1765570315152,241.09,8.394e-05,2]
[398386648,1765570394044,150.0,7.01e-05,2]
[398386649,1765570394828,173.55,7.647e-05,2]
[398386650,1765570394892,260.33,8.284e-05,2]
[398386651,1765570473027,150.0,7.106e-05,2]
[398386652,1765570473449,158.69,7.752e-05,2]
[398386653,1765570473853,238.03,8.399e-05,2]
[398386654,1765570552967,150.0,7.074e-05,2]
[398386655,1765570553432,150.0,7.717e-05,2]